bitfinex/quotes_SOLUSD_20260203
["timestamp","ask_amount","ask_price","bid_price","bid_amount"]
[1770131480323,7.98761207,101.28,101.24,18.33044774]
[1770131480523,7.98761207,101.28,101.24,10.34283567]
[1770131481145,7.98761207,101.27,101.24,0.46531691]
[1770131481549,7.98761207,101.27,101.23,17.86570523]
[1770131481550,9.87166831,101.3,101.25,8.45292898]
[1770131481782,7.98761207,101.3,101.26,8.45292898]
[1770131481928,18.26181267,101.3,101.26,9.87526257]
[1770131482453,7.98761207,101.29,101.25,10.34133658]
[1770131482633,7.98761207,101.27,101.23,0.46531691]
[1770131482836,7.98761207,101.27,101.23,10.3430267]
[1770131483437,7.98761207,101.28,101.25,9.87648173]
[1770131483754,34.95335126,101.3,101.25,9.87648173]
[1770131483755,18.26179256,101.3,101.25,18.32941071]
[1770131484057,10.27418049,101.3,101.26,18.32817858]
[1770131484549,7.98761207,101.29,101.25,10.34133532]
[1770131484752,7.98761207,101.29,101.25,43.02030541]
[1770131484930,18.26179256,101.3,101.25,43.02030541]
[1770131485446,17.85957153,101.3,101.26,0.46531691]
[1770131485630,7.98761207,101.29,101.26,0.46531691]
[1770131485836,7.98761207,101.29,101.22,27.42]
[1770131485837,17.8624811,101.27,101.23,9.87792847]
[1770131486151,17.8624811,101.27,101.23,10.34324538]
[1770131486658,7.98761207,101.26,101.23,10.34324538]
[1770131487034,17.8624811,101.27,101.23,10.34324538]
[1770131487756,0.40220138,101.28,101.23,35.03948167]
[1770131487954,17.86236467,101.27,101.24,0.46531691]
[1770131488150,7.98761207,101.26,101.23,9.87792847]
[1770131488535,17.86236467,101.27,101.23,9.87792847]
[1770131488751,7.98761207,101.26,101.23,9.87792847]
[1770131488930,17.86236467,101.27,101.23,9.87792847]
[1770131489445,17.86236467,101.27,101.23,10.34324538]
[1770131489758,18.26389056,101.28,101.24,9.87743921]
[1770131490634,7.98761207,101.27,101.24,9.87743921]
[1770131491638,9.87317153,101.29,101.25,0.46531691]
[1770131491847,10.27437587,101.3,101.25,8.45292898]
[1770131492042,18.26198794,101.3,101.25,18.32873688]
[1770131492249,7.98761207,101.32,101.27,7.98761207]
[1770131492443,17.85786336,101.32,101.28,0.46531691]
[1770131492634,18.25883683,101.33,101.28,7.98761207]
[1770131492835,10.27122476,101.33,101.27,0.46531691]
[1770131493037,7.98761207,101.31,101.27,0.46531691]
[1770131493255,7.98761207,101.29,101.25,10.34112481]
[1770131493553,7.98761207,101.3,101.26,0.46531691]
[1770131493760,0.40212718,101.3,101.26,0.46531691]
[1770131493961,17.86033855,101.29,101.26,0.46531691]
[1770131494140,17.86033855,101.29,101.23,10.3430825]
[1770131494141,7.98761207,101.27,101.23,10.3430825]
[1770131494343,7.98761207,101.27,101.23,0.46531691]
[1770131495259,7.98761207,101.27,101.24,9.87750711]
[1770131495441,17.86034056,101.29,101.25,0.46531691]
[1770131495756,7.98761207,101.29,101.25,0.46531691]
[1770131495941,17.85980973,101.3,101.26,0.46531691]
[1770131496143,7.98761207,101.29,101.26,0.46531691]
[1770131496343,7.98761207,101.3,101.26,0.46531691]
[1770131496551,17.85830597,101.31,101.26,8.45292898]
[1770131496752,7.98761207,101.3,101.26,0.46531691]
[1770131497360,9.8706939,101.31,101.26,10.34018124]
[1770131497550,7.98761207,101.3,101.26,10.34018124]
[1770131498056,0.40208416,101.27,101.24,9.87667952]
[1770131498243,7.98761207,101.26,101.23,9.87812605]
[1770131498434,7.98761207,101.25,101.22,10.34431188]
[1770131498640,7.98761207,101.25,101.23,9.87846221]
[1770131498861,7.98761207,101.28,101.24,0.46531691]
[1770131499272,17.86226,101.27,101.24,0.46531691]
[1770131499559,7.98761207,101.28,101.25,0.46531691]
[1770131499738,17.86127524,101.28,101.24,9.8774502]
[1770131499940,9.87366317,101.28,101.24,10.34276711]
[1770131500135,17.86127524,101.28,101.24,10.34276711]
[1770131501072,17.86132623,101.28,101.24,10.34276711]
[1770131503158,7.98761207,101.27,101.24,10.34276711]
[1770131503360,17.86132623,101.28,101.24,10.34276711]
[1770131505874,7.98761207,101.26,101.23,10.34341475]
[1770131506389,7.98761207,101.25,101.21,51.78734913]
[1770131506681,7.98761207,101.24,101.21,41.90768102]
[1770131507260,7.98761207,101.24,101.21,51.78807044]
[1770131507853,7.98761207,101.24,101.22,0.46531691]
[1770131508059,7.98761207,101.25,101.22,0.46531691]
[1770131508479,8.04352804,101.25,101.22,0.46531691]
[1770131508666,8.04352804,101.25,101.21,41.44236411]
[1770131508667,8.04352804,101.24,101.21,41.44236411]
[1770131508870,8.04352804,101.24,101.21,41.90768102]
[1770131509071,8.04352804,101.24,101.21,41.44236411]
[1770131509272,8.04352804,101.23,101.21,41.44236411]
[1770131509585,0.40200524,101.25,101.21,51.78798486]
[1770131509586,8.04352804,101.24,101.21,51.78798486]
[1770131509781,17.9208856,101.25,101.21,51.78798486]
[1770131509972,8.04352804,101.25,101.22,0.46531691]
[1770131510864,18.31865903,101.29,101.24,8.52153508]
[1770131511184,17.91667575,101.29,101.25,0.47800704]
[1770131511487,8.04352804,101.27,101.24,0.47800704]
[1770131511684,17.91750751,101.28,101.24,10.35516106]
[1770131511984,17.91721695,101.28,101.25,0.47800704]
[1770131512375,8.04352804,101.27,101.25,0.47800704]
[1770131512577,17.91721695,101.28,101.25,0.47800704]
[1770131513888,0.40195517,101.25,101.21,41.44236411]
[1770131514086,8.04352804,101.22,101.2,9.88137385]
[1770131514493,8.04352804,101.23,101.2,10.35106835]
[1770131514798,8.04352804,101.22,101.2,10.35102634]
[1770131514987,8.04352804,101.23,101.2,10.35102634]
[1770131515487,34.9767544,101.23,101.19,0.4696945]
[1770131515686,8.04352804,101.22,101.19,10.35163166]
[1770131516281,8.04352804,101.23,101.2,9.88099905]
[1770131516588,8.04352804,101.22,101.2,9.88099905]
[1770131516970,8.04352804,101.23,101.2,9.88099905]
[1770131517170,8.04352804,101.23,101.19,10.35161628]
[1770131517171,8.04352804,101.22,101.19,10.35161628]
[1770131517992,9.87860931,101.23,101.19,10.35161628]
[1770131518313,17.92212809,101.23,101.2,0.4696945]
[1770131518595,17.92212809,101.23,101.19,10.35161628]
[1770131518770,8.04352804,101.23,101.19,10.35161628]
[1770131518966,8.04352804,101.23,101.2,0.4696945]
[1770131519168,17.92204883,101.23,101.2,0.4696945]
[1770131519390,10.27992952,101.24,101.2,10.35102384]
[1770131519595,17.92083631,101.25,101.21,0.4696945]
[1770131520377,17.91920011,101.26,101.22,0.4696945]
[1770131520690,8.44543703,101.23,101.18,10.35246821]
[1770131520896,74.06686306,101.26,101.18,0.4696945]
[1770131520897,8.04352804,101.2,101.18,0.4696945]
[1770131521406,9.88097855,101.21,101.18,0.4696945]
[1770131521587,8.04352804,101.2,101.18,10.35302884]
[1770131521787,8.04352804,101.2,101.18,0.4696945]
[1770131522174,8.04352804,101.19,101.17,0.6696945]
[1770131522374,8.04352804,101.2,101.17,0.6696945]
[1770131522577,8.04352804,101.19,101.17,0.2]
[1770131522794,8.44542451,101.18,101.14,0.2]
[1770131522973,8.04352804,101.15,101.14,0.2]
[1770131523174,8.04352804,101.17,101.14,0.2]
[1770131523387,17.92809227,101.17,101.14,0.2]
[1770131523694,8.04352804,101.16,101.14,0.2]
[1770131523887,8.04352804,101.15,101.12,41.44236411]
[1770131524089,8.04352804,101.14,101.12,41.44236411]
[1770131524395,8.04352804,101.15,101.12,0.4696945]
[1770131524580,34.5954469,101.17,101.13,0.4696945]
[1770131524894,8.04352804,101.16,101.13,0.4696945]
[1770131525104,8.04352804,101.15,101.12,9.8887781]
[1770131525406,8.04352804,101.15,101.12,10.3584726]
[1770131525588,8.04352804,101.14,101.12,0.4696945]
[1770131525771,8.04352804,101.15,101.12,10.35874563]
[1770131525973,8.04352804,101.15,101.11,0.2]
[1770131525974,8.04352804,101.13,101.11,0.2]
[1770131526489,8.04352804,101.14,101.11,10.55961172]
[1770131527610,24.71058638,101.18,101.12,0.4696945]
[1770131527802,17.92742075,101.18,101.13,0.4696945]
[1770131528109,0.4018664,101.19,101.15,0.4696945]
[1770131528110,17.92649121,101.19,101.15,0.4696945]
[1770131528401,8.04352804,101.18,101.15,0.4696945]
[1770131528984,8.04352804,101.17,101.13,0.4696945]
[1770131529195,8.04352804,101.16,101.12,0.4696945]
[1770131529400,8.04352804,101.15,101.12,0.4696945]
[1770131529606,8.04352804,101.16,101.13,0.4696945]
[1770131531003,17.92899304,101.16,101.13,0.4696945]
[1770131531205,0.40185485,101.18,101.14,0.4696945]
[1770131531411,8.04352804,101.17,101.14,0.4696945]
[1770131531782,8.04352804,101.16,101.12,10.35848611]
[1770131532191,8.04352804,101.17,101.13,9.88803673]
[1770131532404,8.04352804,101.16,101.12,10.35852292]
[1770131532781,8.04352804,101.16,101.13,9.88824485]
[1770131533109,8.04352804,101.15,101.12,10.35847236]
[1770131533296,17.92971165,101.16,101.12,10.35847236]
[1770131533480,8.04352804,101.16,101.12,10.35847236]
[1770131533877,17.92896982,101.16,101.12,10.35847236]
[1770131535399,17.92896982,101.16,101.13,0.4696945]
[1770131535699,17.92896982,101.16,101.13,10.35786133]
[1770131536280,17.9269042,101.18,101.14,0.4696945]
[1770131536502,17.92648476,101.19,101.15,0.4696945]
[1770131537796,17.92648476,101.19,101.15,10.35582797]
[1770131537988,8.04352804,101.18,101.15,0.4696945]
[1770131538191,8.04352804,101.17,101.13,10.35747939]
[1770131538682,8.04352804,101.16,101.13,0.4696945]
[1770131538885,8.04352804,101.15,101.13,0.4696945]
[1770131539085,8.04352804,101.16,101.13,10.35792233]
[1770131539285,8.04352804,101.16,101.13,10.35743446]
[1770131539491,34.58895533,101.19,101.13,10.35743446]
[1770131539492,8.04352804,101.17,101.14,0.4696945]
[1770131540093,17.92630173,101.19,101.15,0.4696945]
[1770131540493,18.32809262,101.19,101.15,0.4696945]
[1770131541514,18.32809262,101.19,101.15,10.35596748]
[1770131542199,34.99056319,101.19,101.15,0.4696945]
[1770131542509,42.63230034,101.19,101.15,10.35588962]
[1770131543010,8.04352804,101.16,101.12,0.49545927]
[1770131543214,8.04352804,101.18,101.14,0.49545927]
[1770131543399,8.04352804,101.18,101.15,10.38145774]
[1770131543595,17.92630173,101.19,101.15,10.38145774]
[1770131544001,8.04352804,101.17,101.13,10.68351777]
[1770131544616,8.04352804,101.16,101.13,0.49545927]
[1770131545688,17.92941251,101.16,101.13,0.49545927]
[1770131546799,17.92941251,101.16,101.13,10.38355442]
[1770131547001,17.92825804,101.17,101.13,10.38355442]
[1770131547197,17.92792441,101.17,101.14,0.49545927]
[1770131547504,8.04352804,101.16,101.13,0.49545927]
[1770131547700,17.92903835,101.16,101.12,10.38425778]
[1770131547888,17.92903835,101.16,101.13,0.49545927]
[1770131548695,25.10969061,101.19,101.13,9.88759805]
[1770131548901,8.04352804,101.17,101.14,0.49545927]
[1770131549616,17.92799806,101.17,101.14,0.49545927]
[1770131550020,9.88447002,101.17,101.14,10.38265153]
[1770131550202,9.88447002,101.17,101.14,9.88265153]
[1770131550402,9.88298248,101.19,101.14,9.88265153]
[1770131550601,8.04352804,101.21,101.16,8.04352804]
[1770131551618,8.52174859,101.21,101.16,8.04352804]
[1770131551917,18.40277272,101.21,101.17,9.88435306]
[1770131552307,17.92455217,101.21,101.18,0.49545927]
[1770131552508,18.40277272,101.21,101.17,10.37981233]
[1770131553319,18.40164569,101.22,101.18,0.49545927]
[1770131553702,18.40164569,101.22,101.18,10.37841839]
[1770131553901,8.04352804,101.21,101.18,10.37841839]
[1770131554809,8.04352804,101.21,101.18,0.49545927]
[1770131555216,8.04352804,101.21,101.18,10.37864038]
[1770131555724,8.04352804,101.21,101.18,0.49545927]
[1770131556025,18.4024963,101.21,101.18,0.49545927]
[1770131556324,8.04352804,101.2,101.17,9.88378709]
[1770131556724,8.52174859,101.2,101.17,9.88378709]
[1770131556905,8.04352804,101.2,101.17,10.37924636]
[1770131557428,18.4024963,101.21,101.17,10.37924636]
[1770131557932,8.52174859,101.19,101.15,18.42476974]
[1770131558108,8.52174859,101.18,101.15,0.49545927]
[1770131558311,8.04352804,101.16,101.13,10.38318311]
[1770131558523,8.52174859,101.17,101.14,0.49545927]
[1770131559232,0.47822055,101.15,101.11,0.69545927]
[1770131559433,78.38637938,101.2,101.11,0.69545927]
[1770131559434,8.04352804,101.13,101.11,0.2]
[1770131559626,8.04352804,101.12,101.11,0.2]
[1770131560124,0.47822055,101.15,101.11,0.69545927]
[1770131560330,8.04352804,101.16,101.12,0.49545927]
[1770131560530,17.92952655,101.16,101.12,8.53898731]
[1770131560929,0.47822055,101.12,101.06,0.49545927]
[1770131561134,8.04352804,101.07,101.04,5.46073943]
[1770131561427,4.27527085,101.11,101.04,0.3157738]
[1770131561606,4.27527085,101.11,101.05,10.39132993]
[1770131561607,8.04352804,101.08,101.05,10.39132993]
[1770131561808,8.04352804,101.09,101.05,10.39132993]
[1770131562032,17.93623536,101.09,101.05,10.39132993]
[1770131562236,17.93623536,101.09,101.06,0.49545927]
[1770131562411,17.93508581,101.1,101.06,0.49545927]
[1770131562615,17.93508581,101.1,101.05,42.67962631]
[1770131562616,17.93486208,101.1,101.07,0.49545927]
[1770131562813,8.04352804,101.09,101.07,0.49545927]
[1770131563019,8.04352804,101.08,101.05,0.49545927]
[1770131563221,34.61932612,101.1,101.04,0.3157738]
[1770131563536,8.04352804,101.06,101.04,0.3157738]
[1770131564123,17.93699815,101.08,101.05,0.49545927]
[1770131564428,17.93601918,101.09,101.05,0.49545927]
[1770131564627,8.04352804,101.08,101.05,0.49545927]
[1770131565538,17.93676708,101.08,101.05,0.49545927]
[1770131567326,9.89263847,101.09,101.05,9.89603369]
[1770131567523,17.93514214,101.1,101.06,0.49545927]
[1770131567728,17.93481907,101.1,101.06,8.53898731]
[1770131568023,0.47822055,101.06,101.0,0.2]
[1770131568224,8.04352804,101.02,101.0,0.2]
[1770131568529,7.18439532,101.01,100.99,0.2]
[1770131568936,7.18439532,101.02,100.99,0.2]
[1770131569132,7.18439532,101.01,100.99,0.2]
[1770131569440,0.40330182,101.03,100.99,0.2]
[1770131569441,7.18439532,101.02,100.99,0.2]
[1770131569623,17.0834801,101.02,100.99,0.2]
[1770131570438,7.18439532,101.0,100.96,0.49564912]
[1770131570623,7.18439532,100.99,100.96,0.49564912]
[1770131571135,7.18439532,100.98,100.95,0.2]
[1770131571451,7.18439532,100.97,100.95,0.2]
[1770131571647,17.0883887,100.97,100.95,0.2]
[1770131571838,17.08844468,100.97,100.95,0.69564912]
[1770131572221,7.18439532,100.96,100.93,0.49564912]
[1770131572432,7.18439532,100.95,100.93,0.49564912]
[1770131572630,9.90241988,100.99,100.94,10.40182153]
[1770131572831,7.18439532,100.99,100.96,0.49945171]
[1770131573226,17.08474862,101.01,100.97,0.49945171]
[1770131573539,7.18439532,101.02,100.97,7.68384703]
[1770131573840,7.18439532,100.99,100.97,0.49945171]
[1770131574022,7.18439532,100.99,100.95,0.49945171]
[1770131574222,17.08389577,101.02,100.98,0.49945171]
[1770131574433,9.89950045,101.02,100.98,7.68384703]
[1770131574634,17.08299421,101.03,100.99,0.49945171]
[1770131574829,7.18439532,101.05,101.01,0.49945171]
[1770131575731,9.89707046,101.04,101.01,0.49945171]
[1770131575933,98.81208654,101.08,101.03,7.68384703]
[1770131575934,17.07789489,101.08,101.03,7.68384703]
[1770131576140,9.89257162,101.09,101.05,7.68384703]
[1770131576443,9.89257162,101.09,101.06,0.49945171]
[1770131576828,41.80740516,101.09,101.04,7.68384703]
[1770131577023,41.80740516,101.09,101.05,0.49945171]
[1770131577442,9.89257162,101.09,101.06,0.49945171]
[1770131577744,27.90326467,101.14,101.09,0.49945171]
[1770131577945,9.88853895,101.13,101.09,7.68384703]
[1770131578125,17.07293427,101.13,101.09,0.49945171]
[1770131578631,7.18439532,101.11,101.01,106.7000792]
[1770131578835,7.18439532,101.1,101.05,7.18439532]
[1770131579036,7.18439532,101.1,101.05,17.07999288]
[1770131579236,7.65004836,101.11,101.06,7.18439532]
[1770131579547,7.18439532,101.1,101.05,17.08002156]
[1770131580044,17.07631486,101.1,101.05,17.08002156]
[1770131580636,17.54077519,101.11,101.07,0.49945171]
[1770131580834,7.18439532,101.09,101.05,10.39507795]
[1770131581040,7.18439532,101.09,101.05,0.49945171]
[1770131581342,0.46565304,101.1,101.06,7.68384703]
[1770131581531,71.32466347,101.14,101.08,0.49945171]
[1770131581532,17.07363582,101.12,101.08,0.49945171]
[1770131581735,42.26239012,101.12,101.08,0.49945171]
[1770131582547,7.18439532,101.11,101.08,0.49945171]
[1770131582730,7.18439532,101.1,101.06,0.49945171]
[1770131583333,7.18439532,101.08,101.04,10.39597644]
[1770131583633,46.07200793,101.12,101.03,0.49945171]
[1770131583634,7.65004836,101.09,101.03,0.49945171]
[1770131583835,7.65004836,101.04,100.99,0.49945171]
[1770131584037,4.27527085,101.08,100.97,21.104742]
[1770131584038,7.18439532,101.01,100.97,21.104742]
[1770131584235,7.18439532,101.0,100.95,0.49945171]
[1770131584441,7.65004836,101.01,100.96,10.40397108]
[1770131584738,7.65004836,101.01,100.97,10.40318195]
[1770131585048,10.36458706,101.03,100.98,0.49945171]
[1770131585249,9.89893402,101.03,101.0,0.49945171]
[1770131585655,9.89893402,101.03,100.99,7.18439532]
[1770131585950,7.18439532,101.01,100.97,10.40311548]
[1770131586148,7.18439532,101.03,100.99,0.49945171]
[1770131586352,17.08308538,101.03,100.99,0.49945171]
[1770131586555,17.08308538,101.03,100.97,34.66349342]
[1770131586556,7.65004836,101.02,100.97,41.84788874]
[1770131586747,7.18439532,101.02,100.98,0.49945171]
[1770131587057,17.08162678,101.04,101.0,0.49945171]
[1770131587653,7.18439532,101.02,100.98,0.49945171]
[1770131587841,7.18439532,101.01,100.97,9.90366377]
[1770131588041,17.08468494,101.01,100.97,10.40311548]
[1770131588239,7.18439532,100.99,100.95,10.40481357]
[1770131588438,7.18439532,101.0,100.97,9.90386184]
[1770131588648,17.54933766,101.02,100.98,0.49945171]
[1770131588850,9.8992893,101.02,100.98,7.68384703]
[1770131589046,17.08368462,101.02,100.98,0.49945171]
[1770131589251,7.18439532,101.01,100.98,0.49945171]
[1770131589836,35.11251707,101.02,100.98,0.49945171]
[1770131590042,7.18439532,101.01,100.98,0.49945171]
[1770131590242,7.18439532,101.01,100.97,9.90357487]
[1770131590455,7.18439532,101.01,100.97,10.40302658]
[1770131590760,17.54933766,101.02,100.97,17.58732969]
[1770131590959,17.54933766,101.02,100.97,17.58732323]
[1770131591163,7.18439532,101.01,100.97,10.40292791]
[1770131591364,9.89851667,101.03,100.98,9.90288096]
[1770131591555,7.65004836,101.06,101.01,7.68384703]
[1770131591863,42.2834765,101.06,101.01,7.68384703]
[1770131592077,42.2834765,101.06,101.01,0.49945171]
[1770131592375,42.2834765,101.06,101.0,7.18439532]
[1770131592376,7.65004836,101.04,101.0,9.90018394]
[1770131592536,7.65004836,101.04,101.0,10.39963565]
[1770131592736,7.65004836,101.04,101.0,0.49945171]
[1770131592737,7.18439532,101.04,101.0,0.49945171]
[1770131592957,7.18439532,101.05,101.01,0.49945171]
[1770131593339,42.2834765,101.06,101.01,17.58376512]
[1770131593545,17.54569697,101.06,101.01,17.58376512]
[1770131593750,7.65004836,101.05,101.01,10.3993698]
[1770131593954,17.08004393,101.06,101.02,0.49945171]
[1770131594134,7.18439532,101.05,101.01,9.89991809]
[1770131594339,7.18439532,101.04,101.0,10.39991484]
[1770131594549,7.18439532,101.03,101.0,0.49945171]
[1770131594758,7.18439532,101.03,100.99,9.9014327]
[1770131595256,7.65004836,101.03,100.99,10.40138098]
[1770131595440,7.18439532,101.04,101.0,10.40015636]
[1770131595757,9.8956569,101.06,101.02,7.68384703]
[1770131595959,17.08005222,101.06,101.02,0.49945171]
[1770131596343,17.54570526,101.06,101.02,0.49945171]
[1770131596547,17.54570526,101.06,101.02,10.39824125]
[1770131597261,7.18439532,101.05,101.01,9.89969829]
[1770131597556,7.65004836,101.04,100.99,10.4008791]
[1770131597742,7.18439532,101.03,100.99,0.49945171]
[1770131598138,7.18439532,101.03,100.99,10.40097292]
[1770131598349,17.08378808,101.02,100.99,0.49945171]
[1770131598659,0.46565304,100.99,100.94,0.49945171]
[1770131598850,7.18439532,100.97,100.94,10.40578555]
[1770131599157,7.65004836,100.99,100.95,0.49945171]
[1770131600461,17.5524026,100.99,100.95,10.40509678]
[1770131601047,7.18439532,100.98,100.95,0.49945171]
[1770131602240,7.18439532,100.98,100.95,10.40526604]
[1770131602440,17.58504158,100.98,100.93,17.58112045]
[1770131602646,10.40064626,100.98,100.93,0.48921419]
[1770131602947,7.18439532,100.97,100.93,10.39641863]
[1770131603252,7.18439532,100.96,100.93,0.48921419]
[1770131603447,7.18439532,100.96,100.92,10.39760543]
[1770131604252,7.18439532,100.95,100.92,10.39760543]
[1770131604453,17.5868377,100.96,100.92,9.90839124]
[1770131604668,7.6816414,100.95,100.91,10.49891802]
[1770131604850,7.18439532,100.94,100.91,0.1]
[1770131605051,17.08959162,100.96,100.92,0.48921419]
[1770131605567,7.6816414,100.96,100.91,42.4579357]
[1770131606355,17.58577509,100.97,100.92,7.67360951]
[1770131606559,17.08948626,100.96,100.92,10.39754909]
[1770131607057,7.18439532,100.95,100.91,17.68293742]
[1770131607265,17.58673234,100.96,100.92,9.90868981]
[1770131607450,17.58673234,100.96,100.92,10.397904]
[1770131607651,17.58673234,100.96,100.91,1e-08]
[1770131607652,7.6816414,100.93,100.91,1e-08]
[1770131607862,7.6816414,100.92,100.88,10.40138861]
[1770131608158,7.18439532,100.91,100.88,10.40138861]
[1770131608568,7.18439532,100.9,100.87,0.1]
[1770131608971,7.18439532,100.91,100.87,10.50292191]
[1770131609551,7.18439532,100.91,100.87,10.01370772]
[1770131609752,10.40658996,100.92,100.87,0.58921419]
[1770131609753,7.18439532,100.9,100.87,0.58921419]
[1770131610067,7.18439532,100.9,100.86,9.91462096]
[1770131610068,0.49724608,100.89,100.85,9.91516666]
[1770131610275,7.18439532,100.87,100.84,10.50573523]
[1770131610657,7.18439532,100.87,100.84,10.50587098]
[1770131610858,7.18439532,100.87,100.84,0.58921419]
[1770131611474,0.49724608,100.87,100.84,0.1]
[1770131611674,7.6816414,100.87,100.84,0.1]
[1770131611974,7.6816414,100.87,100.84,10.01626486]
[1770131612154,17.09777599,100.88,100.84,10.01626486]
[1770131612576,0.49724608,100.91,100.85,17.58845779]
[1770131612876,17.09519809,100.9,100.86,0.48921419]
[1770131613056,9.91080277,100.9,100.87,0.48921419]
[1770131613251,17.09519809,100.9,100.85,17.58845779]
[1770131613580,7.6816414,100.86,100.84,0.1]
[1770131613875,7.18439532,100.86,100.84,0.1]
[1770131614048,0.49724608,100.87,100.84,10.01655578]
[1770131614049,7.18439532,100.87,100.84,10.01655578]
[1770131614256,0.49724608,100.88,100.84,0.1]
[1770131614455,7.18439532,100.87,100.84,0.1]
[1770131614786,10.41150917,100.87,100.83,0.3157738]
[1770131614953,7.18439532,100.85,100.83,0.3157738]
[1770131615452,7.18439532,100.86,100.83,0.3157738]
[1770131615653,7.18439532,100.86,100.82,10.40777163]
[1770131615654,0.49724608,100.85,100.78,0.48921419]
[1770131615861,0.48684316,100.82,100.77,0.48921419]
[1770131616188,0.48684115,100.81,100.76,12.88587]
[1770131616468,7.18439532,100.8,100.77,0.48921419]
[1770131616675,7.18439532,100.79,100.76,12.39671599]
[1770131616889,10.4082711,100.8,100.76,12.39671599]
[1770131616890,7.18439532,100.8,100.76,12.88593018]
[1770131617076,7.18439532,100.8,100.76,12.98593018]
[1770131617453,17.10404614,100.81,100.77,0.48921419]
[1770131618260,7.18439532,100.8,100.77,0.48921419]
[1770131618457,7.18439532,100.78,100.76,0.23032143]
[1770131618886,7.18439532,100.79,100.76,0.23032143]
[1770131619060,17.10503024,100.8,100.76,10.6440221]
[1770131619263,9.92063492,100.8,100.76,10.6440221]
[1770131619566,7.18439532,100.79,100.76,0.71953562]
[1770131619958,9.92063492,100.8,100.76,10.64389152]
[1770131620161,24.79760183,100.82,100.77,0.48921419]
[1770131620360,0.48683335,100.83,100.77,0.48921419]
[1770131620361,7.18439532,100.81,100.77,0.48921419]
[1770131620780,17.1048215,100.81,100.77,0.48921419]
[1770131620983,7.18439532,100.8,100.77,0.48921419]
[1770131621580,7.18439532,100.79,100.76,0.71953562]
[1770131621767,7.18439532,100.8,100.77,0.48921419]
[1770131621967,35.20638471,100.81,100.76,10.64354328]
[1770131622171,7.18439532,100.8,100.76,0.71953562]
[1770131622769,7.18439532,100.79,100.76,0.71953562]
[1770131622969,17.10633043,100.79,100.76,0.71953562]
[1770131623191,7.18439532,100.79,100.76,10.64402782]
[1770131623378,17.10547199,100.8,100.76,10.64402782]
[1770131623580,7.18439532,100.81,100.77,0.48921419]
[1770131624087,7.18439532,100.82,100.78,0.48921419]
[1770131624269,17.10257134,100.83,100.79,0.48921419]
[1770131624766,7.18439532,100.82,100.79,0.48921419]
[1770131624965,7.18439532,100.81,100.77,0.48921419]
[1770131625165,7.18439532,100.8,100.77,0.48921419]
[1770131625387,7.18439532,100.79,100.76,0.23032143]
[1770131625762,7.18439532,100.77,100.76,0.23032143]
[1770131626770,7.18439532,100.78,100.76,0.23032143]
[1770131626971,9.92358836,100.77,100.76,0.23032143]
[1770131627160,17.10754202,100.78,100.76,0.23032143]
[1770131627364,7.18439532,100.77,100.76,0.23032143]
[1770131627666,17.10754202,100.78,100.76,0.23032143]
[1770131627861,7.18439532,100.77,100.74,0.48921419]
[1770131628066,7.18439532,100.77,100.71,24.82272954]
[1770131628067,7.18439532,100.75,100.71,10.41871473]
[1770131628483,0.4868188,100.75,100.71,0.48921419]
[1770131628786,7.18439532,100.74,100.71,0.48921419]
[1770131629086,17.11045071,100.75,100.71,10.4185841]
[1770131629390,17.11045071,100.75,100.69,10.41996475]
[1770131629391,7.18439532,100.73,100.69,10.41996475]
[1770131629571,7.18439532,100.71,100.68,9.93201079]
[1770131629886,7.18439532,100.71,100.68,10.42124952]
[1770131630387,7.22711251,100.71,100.68,0.48921419]
[1770131630575,7.22711251,100.7,100.68,0.48921419]
[1770131630768,7.22711251,100.69,100.66,10.42919925]
[1770131631085,7.22711251,100.7,100.67,9.93340134]
[1770131631481,9.92999932,100.71,100.67,10.42871475]
[1770131631689,7.22711251,100.71,100.67,10.42871475]
[1770131631988,7.22711251,100.7,100.67,0.49531341]
[1770131632285,25.2893988,100.72,100.68,0.49531341]
[1770131632286,7.22711251,100.72,100.68,0.49531341]
[1770131632494,7.22711251,100.72,100.67,0.49531341]
[1770131632988,7.22711251,100.69,100.67,0.45822086]
[1770131633171,17.15772331,100.7,100.67,0.45822086]
[1770131633377,7.22711251,100.7,100.67,10.39166396]
[1770131633686,7.22711251,100.7,100.67,10.39153585]
[1770131633887,14.20116906,100.75,100.68,7.68533337]
[1770131634076,17.15301072,100.75,100.71,0.45822086]
[1770131634396,7.22711251,100.74,100.69,7.68533337]
[1770131634591,0.48680552,100.74,100.68,0.45822086]
[1770131634780,7.22711251,100.7,100.68,0.45822086]
[1770131634978,7.22711251,100.71,100.68,0.45822086]
[1770131635182,7.22711251,100.71,100.68,10.39059033]
[1770131635584,7.22711251,100.71,100.68,9.93236947]
[1770131635795,10.41571265,100.72,100.68,9.93236947]
[1770131635996,7.22711251,100.71,100.68,9.93236947]
[1770131636299,7.22711251,100.71,100.67,10.39117039]
[1770131636477,10.41571265,100.72,100.67,10.39117039]
[1770131636478,7.22711251,100.7,100.67,10.39117039]
[1770131636875,10.41571265,100.72,100.68,10.39067401]
[1770131637091,17.1568408,100.71,100.68,0.45822086]
[1770131637289,7.22711251,100.7,100.67,0.45822086]
[1770131637987,7.22711251,100.7,100.66,9.93395166]